bitfinex/quotes_SOLUSD_20240725
["timestamp","ask_amount","ask_price","bid_price","bid_amount"]
[1721873000698,7.18e-05,174.7,174.69,45.90551284]
[1721873002182,7.18e-05,174.7,174.69,74.23551284]
[1721873002602,11.5398718,174.84,174.69,74.23551284]
[1721873002807,11.5398718,174.84,174.7,45.0]
[1721873003005,11.5398718,174.84,174.71,0.90488842]
[1721873003704,5.7199,174.83,174.71,0.90488842]
[1721873004091,5.7193,174.85,174.7,43.40488842]
[1721873004315,5.97140259,174.87,174.73,28.33]
[1721873004609,1.43003413,174.87,174.73,28.33]
[1721873004813,7.14863413,174.87,174.73,28.33]
[1721873005510,1.43003413,174.87,174.73,28.33]
[1721873005702,6.3381,174.86,174.73,28.33]
[1721873006004,1.43018525,174.85,174.7,43.40488842]
[1721873006319,7.14938525,174.85,174.7,43.40488842]
[1721873007110,6.3381,174.86,174.7,43.40488842]
[1721873007299,6.3381,174.86,174.72,28.33]
[1721873007500,12.0569,174.86,174.73,45.0]
[1721873007800,1.43017579,174.85,174.73,45.0]
[1721873008021,7.14937579,174.85,174.73,45.0]
[1721873008187,7.14937579,174.85,174.72,28.33]
[1721873008188,5.7192,174.85,174.72,28.33]
[1721873008391,6.3381,174.86,174.72,28.33]
[1721873009309,7.14937864,174.85,174.73,45.0]
[1721873009514,7.14947597,174.85,174.73,45.0]
[1721873010215,1.43027806,174.84,174.73,45.0]
[1721873010612,1.43035568,174.83,174.73,45.0]
[1721873011017,1.43036433,174.85,174.73,45.0]
[1721873011686,5.7195,174.84,174.73,45.0]
[1721873011883,1.43029322,174.83,174.73,45.0]
[1721873012214,23.5381,174.86,174.73,45.0]
[1721873013221,5.7192,174.85,174.73,45.0]
[1721873013396,5.7195,174.84,174.73,45.0]
[1721873014303,29.2572,174.86,174.73,45.0]
[1721873014511,5.7191,174.85,174.73,45.0]
[1721873015695,0.57231157,174.74,174.73,45.0]
[1721873015898,0.57231157,174.74,174.73,73.33]
[1721873017127,0.57231157,174.74,174.73,93.33]
[1721873017426,0.57231157,174.74,174.73,73.33]
[1721873018723,0.57231157,174.74,174.73,28.33]
[1721873019499,0.07231157,174.74,174.73,28.33]
[1721873020328,0.07231157,174.74,174.73,45.0]
[1721873020696,0.07231157,174.74,174.7,28.33]
[1721873021419,0.07231157,174.74,174.7,30.53854079]
[1721873021922,0.07231157,174.74,174.71,45.0]
[1721873022826,0.07231157,174.74,174.67,34.3409]
[1721873023131,0.07231157,174.74,174.7,28.33]
[1721873024021,0.07231157,174.74,174.71,45.0]
[1721873026028,0.07231157,174.74,174.7,28.33]
[1721873026232,0.07231157,174.74,174.67,30.46172392]
[1721873027321,0.07231157,174.74,174.73,28.33]
[1721873027522,0.07231157,174.74,174.73,73.33]
[1721873027738,0.07231157,174.74,174.73,45.0]
[1721873028222,0.07231157,174.74,174.73,73.33]
[1721873029032,1.157e-05,174.74,174.73,73.33]
[1721873029512,5.83811157,174.86,174.73,73.33]
[1721873029835,5.83811157,174.86,174.74,45.0]
[1721873032511,1.42998143,174.85,174.66,2.96660193]
[1721873032711,17.46753403,174.85,174.69,28.33]
[1721873032925,10.31791765,174.84,174.69,28.33]
[1721873033110,1.4304869,174.83,174.69,28.33]
[1721873033312,1.43046869,174.82,174.69,28.33]
[1721873033956,1.43046869,174.82,174.7,45.0]
[1721873034119,10.31791765,174.82,174.7,45.0]
[1721873034314,10.31791765,174.82,174.69,28.33]
[1721873034315,1.43041431,174.81,174.69,28.33]
[1721873034545,7.15091431,174.81,174.69,28.33]
[1721873034914,18.63053317,174.84,174.69,28.33]
[1721873035238,10.31841767,174.83,174.69,28.33]
[1721873035431,10.31841767,174.83,174.66,22.97070738]
[1721873035432,10.31841767,174.85,174.72,28.33]
[1721873035740,5.83811157,174.86,174.72,28.33]
[1721873035741,10.31680752,174.84,174.73,45.0]
[1721873035939,16.15491909,174.86,174.73,45.0]
[1721873038738,5.83811157,174.86,174.73,45.0]
[1721873038923,16.15315682,174.86,174.73,45.0]
[1721873039835,5.83811157,174.86,174.73,45.0]
[1721873040338,7.14919329,174.85,174.72,28.33]
[1721873040635,10.31666305,174.84,174.69,28.33]
[1721873040813,10.31666305,174.84,174.7,20.0]
[1721873041016,1.42999329,174.85,174.7,20.0]
[1721873041211,11.74644604,174.85,174.7,20.0]
[1721873041441,1.42999329,174.85,174.7,20.0]
[1721873041630,5.83811157,174.86,174.74,44.5058]
[1721873041836,5.83811157,174.86,174.77,28.33]
[1721873042135,6.244,174.9,174.78,45.0]
[1721873042335,1.42989417,174.89,174.75,45.0]
[1721873042516,5.7184,174.88,174.75,45.0]
[1721873042940,1.42989417,174.89,174.75,45.0]
[1721873043142,6.244,174.9,174.77,28.33]
[1721873043317,6.244,174.9,174.78,45.0]
[1721873044237,6.411,174.94,174.8,28.33]
[1721873044441,6.411,174.94,174.81,71.93160087]
[1721873044653,6.411,174.98,174.86,28.33]
[1721873044818,6.411,174.98,174.87,45.0]
[1721873045238,7.14466364,174.97,174.87,45.0]
[1721873045628,1.42926364,174.97,174.81,26.93160087]
[1721873045824,5.7165,174.94,174.82,45.0]
[1721873046023,17.2,174.92,174.81,9.1130823]
[1721873046232,16.75596032,174.91,174.78,16.0309]
[1721873046733,6.411,174.9,174.78,18.20187986]
[1721873047335,7.84081762,174.9,174.78,18.20187986]
[1721873047826,6.411,174.9,174.78,18.20187986]
[1721873048637,6.411,174.9,174.79,45.0]
[1721873049350,7.14766215,174.89,174.79,45.0]
[1721873049523,1.42976215,174.89,174.77,28.33]
[1721873050052,1.42976215,174.89,174.76,6.93160087]
[1721873050721,5.7186,174.87,174.76,6.93160087]
[1721873050917,1.43001697,174.86,174.74,28.33]
[1721873051346,1.43013874,174.85,174.74,30.46712054]
[1721873051727,5.7187,174.87,174.74,30.46712054]
[1721873052464,34.741,174.9,174.74,30.46712054]
[1721873052649,36.17098895,174.9,174.75,45.0]
[1721873052852,5.7182,174.88,174.75,45.0]
[1721873053643,14.99,174.87,174.75,45.0]
[1721873053841,1.42994943,174.86,174.75,45.0]
[1721873054170,14.99,174.87,174.75,45.0]
[1721873054674,14.99,174.87,174.74,30.46712054]
[1721873054853,1.43013422,174.86,174.74,30.46712054]
[1721873055050,1.43013452,174.85,174.74,28.33]
[1721873055369,5.7198,174.84,174.74,28.33]
[1721873055539,1.43026495,174.83,174.74,28.33]
[1721873055738,0.57227882,174.75,174.74,28.33]
[1721873056440,0.57227882,174.75,174.74,80.26160087]
[1721873056644,14.99,174.87,174.74,80.26160087]
[1721873056935,14.99,174.87,174.77,28.33]
[1721873057138,14.99,174.87,174.78,45.0]
[1721873059349,14.76109503,174.87,174.78,45.0]
[1721873060061,20.47979503,174.87,174.78,45.0]
[1721873060365,14.76109503,174.87,174.78,45.0]
[1721873061145,14.76109503,174.87,174.8,28.33]
[1721873061341,14.76109503,174.87,174.81,45.0]
[1721873064865,3.34124436,174.87,174.83,28.33]
[1721873065179,6.5496,174.96,174.86,28.33]
[1721873065477,6.2259,175.0,174.87,45.0]
[1721873065952,11.9402,175.0,174.87,45.0]
[1721873066984,11.9402,175.0,174.86,28.33]
[1721873066985,5.7161,174.95,174.86,28.33]
[1721873067481,7.65528072,175.0,174.86,28.33]
[1721873067650,5.7153,174.97,174.86,28.33]
[1721873068055,5.7156,174.96,174.86,28.33]
[1721873068274,1.4292139,174.99,174.86,28.33]
[1721873068471,6.2259,175.0,174.87,45.0]
[1721873068472,1.42922945,174.98,174.87,45.0]
[1721873068653,1.42921319,174.99,174.87,45.0]
[1721873068852,5.7153,174.97,174.87,45.0]
[1721873069470,7.144112,174.99,174.87,45.0]
[1721873069673,7.14420892,174.98,174.87,45.0]
[1721873069874,1.42920892,174.98,174.87,45.0]
[1721873070043,1.42920892,174.98,174.83,35.26160087]
[1721873070373,5.7156,174.96,174.84,45.0]
[1721873070768,7.14484425,174.96,174.84,45.0]
[1721873070967,17.2,174.99,174.84,45.0]
[1721873070968,5.7164,174.94,174.84,45.0]
[1721873071168,5.7164,174.94,174.83,35.26160087]
[1721873072784,5.7164,174.94,174.84,45.0]
[1721873073084,5.7164,174.94,174.81,8.58404678]
[1721873073085,5.717,174.92,174.81,6.3725]
[1721873073372,7.1466257,174.92,174.81,6.3725]
[1721873073568,1.42962164,174.91,174.81,6.3725]
[1721873074262,1.42962164,174.91,174.82,45.0]
[1721873074460,7.14682164,174.91,174.8,28.33]
[1721873074679,7.69482164,174.91,174.8,28.33]
[1721873074849,11.9825,174.91,174.8,28.33]
[1721873075358,5.7175,174.9,174.8,28.33]
[1721873075674,1.42981198,174.89,174.8,28.33]
[1721873075855,0.57208238,174.81,174.8,28.33]
[1721873076465,0.57208238,174.81,174.77,28.33]
[1721873078072,0.57208238,174.81,174.8,28.33]
[1721873078275,0.57208238,174.81,174.8,73.33]
[1721873079661,0.57208238,174.81,174.8,45.0]
[1721873080090,0.57208238,174.81,174.79,28.33]
[1721873080257,0.57208238,174.81,174.8,45.0]
[1721873082693,0.57208238,174.81,174.78,25.48]
[1721873084481,0.57208238,174.81,174.79,45.0]
[1721873085688,0.57208238,174.81,174.77,6.93160087]
[1721873085991,0.57208238,174.81,174.78,25.48]
[1721873086198,0.57208238,174.81,174.79,45.0]
[1721873089065,0.57208238,174.81,174.78,25.48]
[1721873089692,0.57208238,174.81,174.75,32.41160087]
[1721873091271,0.57208238,174.81,174.76,45.0]
[1721873093904,0.57208238,174.81,174.75,25.48]
[1721873094078,0.57208238,174.81,174.72,26.47355613]
[1721873094386,0.57208238,174.81,174.72,25.48]
[1721873095794,0.57208238,174.73,174.72,25.48]
[1721873096366,0.57208238,174.73,174.72,70.48]
[1721873100201,0.57208238,174.73,174.72,57.75]
[1721873100379,0.57208238,174.73,174.72,45.0]
[1721873100585,0.57208238,174.73,174.72,12.75]
[1721873101891,0.57208238,174.73,174.72,57.75]
[1721873102197,0.57208238,174.73,174.72,70.49]
[1721873103103,0.57208238,174.73,174.72,90.49]
[1721873103407,0.57208238,174.73,174.69,25.49]
[1721873103580,0.57208238,174.73,174.7,20.0]
[1721873104598,0.57208238,174.73,174.7,45.49]
[1721873105013,0.57208238,174.73,174.7,25.49]
[1721873106802,0.57208238,174.73,174.71,45.0]
[1721873107104,0.57208238,174.73,174.7,25.49]
[1721873109279,0.57208238,174.73,174.67,25.49]
[1721873110694,0.57208238,174.73,174.68,45.0]
[1721873112588,0.57208238,174.73,174.7,25.49]
[1721873112793,6.3393,174.8,174.71,65.0]
[1721873113097,6.3393,174.8,174.73,25.49]
[1721873113414,6.3393,174.8,174.74,45.0]
[1721873114107,1.43048629,174.79,174.69,25.49]
[1721873114304,1.43048629,174.79,174.7,45.0]
[1721873114703,5.7215,174.78,174.7,45.0]
[1721873114895,7.15258837,174.77,174.66,42.543321]
[1721873115100,1.4309199,174.79,174.66,42.543321]
[1721873115409,24.3523199,174.79,174.66,42.543321]
[1721873115718,0.57254094,174.67,174.66,42.543321]
[1721873116195,0.57254094,174.67,174.66,26.272821]
[1721873116806,0.57254094,174.67,174.66,71.272821]
[1721873120300,5.7221,174.76,174.66,71.272821]
[1721873120504,1.43098921,174.77,174.66,71.272821]
[1721873121415,5.7218,174.77,174.67,45.0]
[1721873122196,5.7221,174.76,174.67,45.0]
[1721873122395,5.7221,174.76,174.66,26.272821]
[1721873122591,5.7217,174.78,174.66,26.272821]
[1721873122796,1.43099574,174.79,174.67,45.0]
[1721873123103,5.7222,174.76,174.67,45.0]
[1721873123817,7.15317169,174.76,174.67,45.0]
[1721873124208,12.76,174.77,174.72,12.76]
[1721873124713,5.7221,174.76,174.66,0.782821]
[1721873125011,12.76,174.73,174.67,12.76]
[1721873125220,22.7624,174.75,174.7,12.76]
[1721873125395,6.1664,174.75,174.74,12.76]
[1721873125828,6.1664,174.75,174.66,0.782821]
[1721873126034,6.1664,174.75,174.73,12.76]
[1721873126330,6.4286,174.8,174.7,26.64448706]
[1721873126507,6.4286,174.8,174.71,45.0]
[1721873127223,6.4286,174.8,174.71,46.1443907]
[1721873127902,385.0,174.89,174.71,46.1443907]
[1721873127903,6.3899,174.91,174.79,25.5]
[1721873128206,6.4002,174.97,174.85,25.5]
[1721873128398,10.31390482,174.96,174.88,25.5]
[1721873128601,6.4002,175.02,174.91,25.5]
[1721873128825,5.7121,175.07,174.94,25.5]
[1721873129095,1.42850876,175.07,174.95,45.0]
[1721873129403,5.7127,175.05,174.95,45.0]
[1721873129623,1.42859916,175.04,174.95,45.0]
[1721873129804,5.713,175.04,174.91,25.5]
[1721873130121,7.14205126,175.03,174.92,45.0]
[1721873130331,1.42875126,175.03,174.92,45.0]
[1721873130515,7.14225126,175.03,174.92,45.0]
[1721873131120,5.7138,175.02,174.92,45.0]
[1721873131437,1.42881926,175.01,174.92,45.0]
[1721873131735,16.0005,174.99,174.81,1.14333371]
[1721873131919,1.4294397,174.98,174.81,3.29739524]
[1721873132232,5.7169,174.92,174.79,28.63]
[1721873132397,7.14693075,174.91,174.77,1.14355176]
[1721873133198,5.7181,174.89,174.76,17.30319646]
[1721873133434,1.42983321,174.88,174.76,1.14379646]
[1721873134007,5.7174,174.91,174.76,3.39036171]
[1721873134208,1.4298333,174.9,174.76,3.39036171]
[1721873134425,1.42983451,174.89,174.76,3.39036171]
[1721873134902,1.42983451,174.89,174.76,2.24656525]
[1721873135109,1.42983451,174.89,174.75,28.63]
[1721873135301,7.14773451,174.89,174.71,7.00000748]
[1721873135504,1.43001131,174.91,174.72,20.0]
[1721873135712,17.2,174.92,174.74,28.63]
[1721873135943,5.7173,174.91,174.75,1.14378964]
[1721873136128,1.42984498,174.9,174.75,1.14378964]
[1721873136429,17.2,174.93,174.71,2.14715776]
[1721873136430,5.7186,174.87,174.73,1.14402535]
[1721873136641,1.43004058,174.86,174.73,1.14402535]
[1721873137635,1.43004058,174.86,174.74,1.14403353]
[1721873139214,5.7188,174.86,174.72,1.14403409]
[1721873139414,23.4256,174.88,174.72,1.14403409]
[1721873139829,1.43016209,174.87,174.72,1.14403409]
[1721873140011,33.64666209,174.87,174.72,1.14403409]
[1721873140430,5.7194,174.85,174.72,46.14403409]
[1721873140735,5.7188,174.86,174.72,46.14403409]
[1721873140943,20.7352,174.87,174.72,46.14403409]
[1721873141141,6.2256,174.88,174.75,28.63]
[1721873141313,6.2256,174.88,174.76,46.14374191]
[1721873141516,6.2256,174.88,174.77,1.14373681]
[1721873141849,15.729,174.93,174.79,28.63]
[1721873142132,6.6145,174.95,174.8,46.14352289]
[1721873142520,259.5,175.01,174.87,28.63]
[1721873142718,6.6188,175.04,174.88,46.14302302]
[1721873142939,1.42877528,175.03,174.88,46.14302302]
[1721873143539,5.7136,175.02,174.88,46.14302302]
[1721873144231,1.42877528,175.03,174.88,46.14302302]
[1721873144436,7.14276943,175.01,174.88,46.14302302]
[1721873144819,1.42889019,175.0,174.88,45.0]
[1721873145044,5.7152,174.97,174.84,1.14311215]
[1721873145342,1.42889019,175.0,174.84,1.14311215]
[1721873145543,1.42906238,174.99,174.84,1.14311215]
[1721873145732,1.42923561,174.98,174.84,1.14311215]
[1721873146050,5.7152,174.98,174.84,1.14311215]
[1721873146549,1.42911919,174.98,174.84,1.14311215]
[1721873146751,1.42911919,174.98,174.84,46.14311215]
[1721873146922,1.42911919,174.98,174.83,29.77338815]
[1721873147125,5.7156,174.96,174.83,1.14338815]
[1721873147842,5.7159,174.95,174.83,1.14338815]
[1721873148155,5.7159,174.95,174.82,1.14347448]
[1721873148445,5.7159,174.95,174.83,1.14346816]
[1721873148945,1.4293352,174.94,174.82,47.19243176]
[1721873149147,1.42947694,174.97,174.82,47.19243176]
[1721873149364,63.62947694,174.97,174.82,47.19243176]
[1721873149723,63.62947694,174.97,174.82,48.33601396]
[1721873149946,63.62947694,174.97,174.82,47.19243176]
[1721873150652,63.62947694,174.97,174.79,28.63]
[1721873150827,5.7173,174.91,174.79,28.63]
[1721873151164,5.7173,174.91,174.79,30.84442205]
[1721873151453,1.42972318,174.9,174.75,50.6763]
[1721873151656,5.7178,174.9,174.75,50.6763]
[1721873152125,5.7185,174.87,174.75,50.6763]
[1721873152561,5.7182,174.88,174.75,22.0463]
[1721873152854,5.7185,174.87,174.75,25.44251693]
[1721873153060,17.2,174.91,174.75,25.44251693]
[1721873153061,1.42988797,174.91,174.75,25.44251693]
[1721873153235,5.7182,174.88,174.75,25.44251693]
[1721873153555,5.7187,174.87,174.76,45.0]
[1721873153764,5.7188,174.86,174.75,18.05820655]
[1721873153965,38.62988797,174.91,174.71,6.21437016]
[1721873153966,1.43018942,174.85,174.72,1.14415153]
[1721873154326,17.2,174.89,174.72,1.14415153]
[1721873154327,20.0,174.88,174.72,3.38061691]
[1721873154549,5.719,174.86,174.72,1.14415153]
[1721873154755,20.0,174.88,174.72,1.14415153]
[1721873154956,18.63015572,174.89,174.72,1.14415153]
[1721873155162,25.28028075,174.92,174.72,1.14415153]
[1721873155341,5.7179,174.89,174.74,28.67]
[1721873155665,25.28028075,174.92,174.75,46.14384172]
[1721873155831,20.0,174.91,174.75,46.14384172]
[1721873156542,5.7179,174.89,174.75,46.14384172]
[1721873160332,5.7182,174.88,174.77,25.48]
[1721873160534,5.7182,174.88,174.78,45.0]
[1721873161250,1.42980451,174.87,174.78,45.0]
[1721873161439,1.42994393,174.9,174.78,45.0]
[1721873161644,1.42994393,174.89,174.78,45.0]
[1721873162534,5.7184,174.88,174.78,45.0]
[1721873162733,1.42994349,174.9,174.78,45.0]
[1721873162938,5.7182,174.88,174.78,45.0]
[1721873163160,5.7186,174.87,174.78,45.0]
[1721873163333,5.7188,174.86,174.78,45.0]
[1721873164238,5.7192,174.85,174.75,27.68980634]
[1721873164429,7.14921141,174.85,174.75,27.68980634]
[1721873165145,1.43008318,174.9,174.75,27.68980634]
[1721873165351,5.7197,174.84,174.75,2.19980634]
[1721873165551,5.7197,174.84,174.74,1.1440672]
[1721873165759,5.7191,174.86,174.74,1.1440672]
[1721873166062,5.7192,174.85,174.74,46.1440672]
[1721873166243,5.7187,174.87,174.74,46.1440672]
[1721873166444,5.7192,174.85,174.74,46.1440672]
[1721873167242,5.7192,174.85,174.74,46.14413634]
[1721873167972,5.7192,174.85,174.74,45.0]
[1721873168263,5.7195,174.84,174.74,45.0]
[1721873168658,5.7195,174.84,174.74,46.14414576]
[1721873170244,5.719,174.86,174.74,46.14414576]
[1721873170543,18.63017352,174.89,174.74,46.14414576]
[1721873170847,20.0,174.88,174.74,46.14414576]
[1721873171164,5.7195,174.84,174.74,46.14414576]
[1721873171469,5.7189,174.86,174.74,46.14414576]
[1721873171870,20.0,174.88,174.74,46.14414576]
[1721873172246,5.7192,174.85,174.74,46.14414576]
[1721873172769,1.43005212,174.9,174.76,25.49]
[1721873172952,17.2,174.91,174.77,62.74144702]
[1721873173271,5.7179,174.89,174.77,62.74144702]
[1721873173960,5.7169,174.92,174.79,25.49]
[1721873174149,5.7172,174.91,174.8,46.14370064]
[1721873174349,5.7169,174.92,174.8,46.14370064]
[1721873174549,16.03064833,174.94,174.8,46.14370064]
[1721873174748,5.7166,174.93,174.8,53.04320341]
[1721873174952,5.7169,174.92,174.8,46.14370064]
[1721873175964,5.7168,174.93,174.8,46.14370064]
[1721873176174,10.31284733,174.95,174.82,25.49]
[1721873176378,6.6563,174.97,174.83,46.14340642]
[1721873176545,10.3116481,174.96,174.83,46.14340642]
[1721873176747,5.7166,174.93,174.83,46.14340642]
[1721873176973,10.3116481,174.96,174.83,46.14340642]
[1721873177266,5.716,174.95,174.83,46.14340642]
[1721873177484,5.716,174.95,174.84,15.6515]
[1721873177780,14.2836,175.03,174.85,84.59590746]
[1721873178075,28.94027861,175.02,174.86,1.14321104]
[1721873178267,28.23834567,175.01,174.86,1.14321104]
[1721873178462,10.3112648,175.0,174.86,1.14321104]
[1721873178652,26.80928848,175.0,174.86,1.14321104]
[1721873178850,33.69802368,175.0,174.86,1.14321104]
[1721873179068,10.31138653,174.99,174.86,1.14321104]
[1721873179459,5.7159,174.95,174.86,1.14321104]
[1721873179658,18.62913923,174.97,174.85,6.0631]
[1721873179854,10.31166105,174.96,174.85,6.0631]
[1721873180146,17.2,174.94,174.84,15.6515]
[1721873180343,26.91942427,174.95,174.84,15.6515]
[1721873180564,5.7169,174.92,174.84,15.6515]
[1721873180776,5.7172,174.91,174.85,1.14365265]
[1721873180989,5.7172,174.91,174.84,15.6515]
[1721873184094,5.7166,174.93,174.84,15.6515]
[1721873184257,5.7166,174.93,174.85,45.0]
[1721873184853,5.7169,174.92,174.85,45.0]
[1721873185360,10.31320946,174.94,174.85,45.0]
[1721873185361,5.7172,174.91,174.85,45.0]
[1721873185682,5.7175,174.9,174.84,15.6515]
[1721873185859,10.31310916,174.94,174.84,15.6515]
[1721873186172,10.31339429,174.93,174.84,15.6515]
[1721873186372,10.31339429,174.94,174.84,15.6515]
[1721873186560,10.31326623,174.93,174.84,15.6515]
[1721873186760,5.7176,174.9,174.84,15.6515]
[1721873187092,5.718,174.89,174.84,15.6515]
[1721873187663,5.7182,174.88,174.81,6.2878]
[1721873188352,5.7178,174.89,174.81,6.2878]
[1721873188563,5.7178,174.89,174.81,7.43156429]
[1721873189085,10.31435141,174.92,174.81,7.43156429]
[1721873189258,5.7179,174.89,174.82,45.0]
[1721873189568,10.31435141,174.93,174.82,45.0]
[1721873189878,17.2,174.9,174.79,15.2266]
[1721873190078,10.31435141,174.89,174.79,15.2266]
[1721873190290,11.74435011,174.9,174.79,15.2266]
[1721873190881,5.7188,174.86,174.79,15.2266]
[1721873191582,5.7185,174.88,174.79,15.2266]
[1721873191887,5.7182,174.89,174.8,45.0]
[1721873192778,10.31481089,174.9,174.8,45.0]
[1721873193077,16.03301089,174.89,174.8,45.0]
[1721873193282,64.11971495,174.92,174.8,45.0]
[1721873193582,10.31479981,174.91,174.8,45.0]
[1721873194278,27.51475556,174.9,174.79,15.2266]
[1721873194465,5.7188,174.87,174.79,15.2266]
[1721873194663,5.719,174.86,174.79,15.2266]
[1721873195467,5.7192,174.85,174.79,15.2266]
[1721873196015,0.57211511,174.8,174.79,15.2266]
[1721873196277,0.57211511,174.8,174.79,60.2266]
[1721873196782,0.57211511,174.8,174.79,15.2266]
[1721873198362,0.57211511,174.8,174.75,16.0106]
[1721873198565,0.57211511,174.8,174.75,17.15477672]
[1721873199386,0.57211511,174.8,174.75,16.0106]
[1721873199962,0.57211511,174.8,174.73,6.5049]
[1721873200177,5.7214,174.79,174.73,6.5049]
[1721873200394,0.57211511,174.8,174.73,6.5049]
[1721873200395,5.7216,174.78,174.73,6.5049]
[1721873201084,5.7216,174.78,174.7,15.4443]
[1721873201988,5.7217,174.78,174.7,15.4443]
[1721873202300,2.00266487,174.8,174.7,15.4443]
[1721873202301,5.7218,174.77,174.7,15.4443]
[1721873202694,10.3206981,174.79,174.7,15.4443]
[1721873202884,5.7218,174.77,174.7,15.4443]
[1721873203201,5.7214,174.79,174.7,15.4443]
[1721873203580,5.7221,174.76,174.71,45.0]
[1721873203775,0.57211511,174.8,174.71,45.0]
[1721873203987,0.57211511,174.8,174.71,46.1445183]
[1721873204191,0.57211511,174.8,174.71,45.0]
[1721873204680,5.7218,174.77,174.71,45.0]
[1721873205080,5.7221,174.76,174.71,45.0]
[1721873205282,5.7218,174.77,174.71,45.0]
[1721873205897,5.7218,174.77,174.7,15.4443]
[1721873206200,2.00276124,174.8,174.7,15.4443]
[1721873206391,5.7221,174.77,174.7,15.4443]
[1721873206579,1.43067827,174.79,174.7,15.4443]
[1721873207007,5.7219,174.77,174.7,15.4443]
[1721873207483,1.43067778,174.76,174.7,15.4443]
[1721873207680,5.722,174.77,174.7,15.4443]
[1721873208182,6.29291511,174.8,174.7,15.4443]
[1721873208388,6.29291511,174.8,174.71,46.14464572]
[1721873208989,5.7212,174.79,174.71,46.14464572]
[1721873209903,0.57211511,174.8,174.71,46.14464572]
[1721873210802,17.2,174.77,174.67,1.14439993]
[1721873210984,5.7247,174.68,174.66,0.782821]
[1721873211404,1.43162165,174.67,174.66,0.782821]
[1721873211699,5.7247,174.68,174.66,0.782821]
[1721873214596,1.43163054,174.67,174.66,0.782821]
[1721873215799,2.00374565,174.67,174.66,0.782821]
[1721873216188,27.49374565,174.67,174.66,0.782821]
[1721873216586,26.06211511,174.67,174.66,0.782821]
[1721873216806,0.57211511,174.67,174.66,0.782821]
[1721873217597,2.00371686,174.67,174.66,0.782821]
[1721873218130,27.49371686,174.67,174.66,0.782821]
[1721873219615,26.06211511,174.67,174.66,0.782821]
[1721873221394,27.49367098,174.67,174.66,0.782821]
[1721873221590,32.01919362,174.67,174.66,0.782821]
[1721873221789,6.52919362,174.67,174.66,0.782821]
[1721873221988,0.57211511,174.67,174.66,0.782821]
[1721873222913,25.49,174.76,174.66,0.782821]
[1721873223103,5.7228,174.74,174.66,0.782821]
[1721873223285,25.49,174.76,174.66,0.782821]
[1721873223710,25.49,174.79,174.67,1.14465563]
[1721873223892,5.7215,174.78,174.67,1.14465563]
[1721873224093,5.7237,174.72,174.66,0.782821]
[1721873224300,5.7232,174.73,174.66,0.782821]
[1721873224497,26.92096151,174.76,174.66,0.782821]
[1721873224788,5.7242,174.7,174.66,0.782821]
[1721873224988,5.7236,174.72,174.66,0.782821]
[1721873225221,5.7241,174.7,174.66,0.782821]
[1721873226413,25.49,174.73,174.66,0.782821]
[1721873226590,5.7249,174.68,174.66,0.782821]
[1721873226990,31.2143,174.7,174.66,0.782821]
[1721873227191,48.5967,174.85,174.66,0.782821]
[1721873227192,25.49,174.73,174.66,0.782821]
[1721873227397,5.7234,174.72,174.66,0.782821]
[1721873227596,25.49,174.73,174.66,0.782821]
[1721873227824,1.43116161,174.72,174.66,0.782821]
[1721873228004,5.7248,174.68,174.66,0.782821]
[1721873228725,5.725,174.67,174.66,0.782821]
[1721873228933,5.725,174.67,174.6,22.5852]
[1721873228934,5.7277,174.59,174.58,0.1506891]
[1721873229298,25.7277,174.59,174.58,0.1506891]
[1721873229948,5.7274,174.6,174.58,0.1506891]
[1721873230706,2.24257322,174.68,174.58,0.1506891]
[1721873230707,1.43192408,174.62,174.58,0.1506891]
[1721873231019,5.7274,174.6,174.58,0.1506891]